bitfinex/quotes_BTCUSD_20230107
["timestamp","ask_amount","ask_price","bid_price","bid_amount"]
[1673073060207,0.05169904,16939.0,16938.0,4.50093411]
[1673073060428,0.05169904,16939.0,16938.0,5.20608907]
[1673073062196,0.05169904,16939.0,16938.0,5.38325279]
[1673073064106,0.05169904,16939.0,16938.0,5.64897836]
[1673073064367,0.05169904,16939.0,16938.0,5.20600686]
[1673073064905,0.05169904,16939.0,16938.0,4.75425466]
[1673073066184,0.05169904,16939.0,16938.0,5.20600686]
[1673073066432,0.05169904,16939.0,16938.0,5.37800686]
[1673073067181,0.05169904,16939.0,16938.0,4.77174786]
[1673073068717,0.05169904,16939.0,16938.0,4.94899379]
[1673073069206,0.0516238,16939.0,16938.0,4.94899379]
[1673073069468,0.0516238,16939.0,16938.0,4.60349379]
[1673073070221,0.0516238,16939.0,16938.0,4.86918681]
[1673073070476,0.0516238,16939.0,16938.0,5.16436681]
[1673073070916,0.0516238,16939.0,16938.0,4.72139531]
[1673073071480,0.0516238,16939.0,16938.0,4.68585899]
[1673073071730,0.0516238,16939.0,16938.0,5.12883049]
[1673073071982,0.0516238,16939.0,16938.0,5.16436681]
[1673073072237,0.0516238,16939.0,16938.0,4.1515949]
[1673073072495,0.0516238,16939.0,16938.0,3.79728401]
[1673073073047,0.0516238,16939.0,16938.0,4.1515949]
[1673073074966,0.0516238,16939.0,16938.0,4.67446311]
[1673073079018,0.02175421,16939.0,16938.0,4.67446311]
[1673073079568,0.05536182,16939.0,16938.0,4.67446311]
[1673073080789,0.05536182,16939.0,16938.0,4.42621531]
[1673073081030,0.05536182,16939.0,16938.0,3.97446311]
[1673073081768,0.05536182,16939.0,16938.0,4.67446311]
[1673073083015,0.05536182,16939.0,16938.0,5.12621531]
[1673073084761,0.05536182,16939.0,16938.0,4.67446311]
[1673073085008,0.05536182,16939.0,16938.0,5.12621531]
[1673073085260,0.05536182,16939.0,16938.0,5.09067899]
[1673073087874,0.05536182,16939.0,16938.0,4.39067899]
[1673073088559,0.05536182,16939.0,16938.0,5.09067899]
[1673073090423,0.05536182,16939.0,16938.0,5.38585899]
[1673073090672,0.05536182,16939.0,16938.0,5.82883049]
[1673073090925,0.05536182,16939.0,16938.0,5.56313747]
[1673073094574,0.05536182,16939.0,16938.0,4.86313747]
[1673073094972,0.05536182,16939.0,16938.0,4.67709872]
[1673073095222,0.05536182,16939.0,16938.0,4.23412722]
[1673073095477,0.05536182,16939.0,16938.0,4.93412722]
[1673073098432,0.05536182,16939.0,16938.0,5.37709872]
[1673073098919,0.05536182,16939.0,16938.0,4.93412722]
[1673073100552,0.05536182,16939.0,16938.0,5.37709872]
[1673073101468,0.05536182,16939.0,16938.0,4.67709872]
[1673073101906,0.05536182,16939.0,16938.0,4.67710872]
[1673073102461,0.05536182,16939.0,16938.0,5.11139527]
[1673073102705,0.05536182,16939.0,16938.0,5.82892219]
[1673073102950,0.05536182,16939.0,16938.0,5.37716999]
[1673073103612,0.05536182,16939.0,16938.0,4.93419849]
[1673073103867,0.05536182,16939.0,16938.0,5.37716999]
[1673073104341,0.05536182,16939.0,16938.0,5.11139527]
[1673073104789,0.05536182,16939.0,16938.0,5.37717338]
[1673073105046,0.05536182,16939.0,16938.0,5.37717337]
[1673073105531,0.05536182,16939.0,16938.0,5.11139527]
[1673073105779,0.05536182,16939.0,16938.0,5.56314747]
[1673073106040,0.05536182,16939.0,16938.0,6.16940647]
[1673073108021,0.05536182,16939.0,16938.0,6.16939647]
[1673073108497,0.05536182,16939.0,16938.0,5.46939647]
[1673073108756,0.05536182,16939.0,16938.0,4.86313747]
[1673073109474,0.05536182,16939.0,16938.0,5.56313747]
[1673073110824,0.05536182,16939.0,16938.0,6.16939647]
[1673073111291,0.05536182,16939.0,16938.0,6.17044538]
[1673073113821,0.05536182,16939.0,16938.0,5.56418638]
[1673073114272,0.05536182,16939.0,16938.0,6.17044538]
[1673073115478,0.05536182,16939.0,16938.0,5.47044538]
[1673073115698,0.05536182,16939.0,16938.0,4.86418638]
[1673073116487,0.05536182,16939.0,16938.0,5.73768638]
[1673073116745,0.05536182,16939.0,16938.0,6.34394538]
[1673073117518,0.05536182,16939.0,16938.0,5.89114427]
[1673073119016,0.05536182,16939.0,16938.0,5.28488527]
[1673073121327,0.05536182,16939.0,16938.0,5.28593418]
[1673073122912,0.05536182,16939.0,16938.0,6.34394538]
[1673073126512,0.05536182,16939.0,16938.0,5.64394538]
[1673073126761,0.05536182,16939.0,16938.0,5.03768638]
[1673073127255,0.05536182,16939.0,16938.0,5.0732227]
[1673073127516,0.05536182,16939.0,16938.0,5.7732227]
[1673073127775,0.05536182,16939.0,16938.0,6.3794817]
[1673073130306,0.05536182,16939.0,16938.0,6.34394538]
[1673073130330,0.05536182,16939.0,16938.0,5.89219318]
[1673073130581,0.05536182,16939.0,16938.0,5.73768638]
[1673073130833,0.05536182,16939.0,16938.0,6.34394538]
[1673073131091,0.05536182,16939.0,16938.0,6.3794817]
[1673073133132,0.05536182,16939.0,16938.0,5.9277295]
[1673073133388,0.05536182,16939.0,16938.0,5.3214705]
[1673073134548,0.05536182,16939.0,16938.0,5.9277295]
[1673073135623,0.05536182,16939.0,16938.0,6.3794817]
[1673073135876,0.05536182,16939.0,16938.0,6.37951692]
[1673073136390,0.05536182,16939.0,16938.0,5.22776472]
[1673073136617,0.05536182,16939.0,16938.0,4.62150572]
[1673073137391,0.05536182,16939.0,16938.0,4.93162329]
[1673073137645,0.05536182,16939.0,16938.0,5.92776142]
[1673073138402,0.05536182,16939.0,16938.0,6.37951362]
[1673073138652,0.05536182,16939.0,16938.0,5.92776142]
[1673073139648,0.05536182,16939.0,16938.0,6.37951362]
[1673073141112,0.05536182,16939.0,16938.0,5.57341861]
[1673073141322,0.05536182,16939.0,16938.0,5.32151498]
[1673073141609,0.05536182,16939.0,16938.0,5.92777398]
[1673073142103,0.05536182,16939.0,16938.0,5.57341861]
[1673073143122,0.05536182,16939.0,16938.0,6.02517081]
[1673073143374,0.05536182,16939.0,16938.0,5.28963449]
[1673073144143,0.05536182,16939.0,16938.0,5.32517081]
[1673073144388,0.05536182,16939.0,16938.0,6.02517081]
[1673073147129,0.05536182,16939.0,16938.0,6.62517081]
[1673073149550,0.05536182,16939.0,16938.0,6.61517081]
[1673073149768,0.05536182,16939.0,16938.0,6.01517081]
[1673073150287,0.05536182,16939.0,16938.0,6.61517081]
[1673073150770,0.05536182,16939.0,16938.0,6.01517081]
[1673073151021,0.05536182,16939.0,16938.0,6.61517081]
[1673073151259,0.05536182,16939.0,16938.0,6.01517081]
[1673073152232,0.05536182,16939.0,16938.0,6.61517081]
[1673073152480,0.05536182,16939.0,16938.0,6.01517081]
[1673073152975,0.05536182,16939.0,16938.0,6.61517081]
[1673073153203,0.05536182,16939.0,16938.0,6.01517081]
[1673073154667,0.05536182,16939.0,16938.0,5.31517081]
[1673073155698,0.05536182,16939.0,16938.0,6.01517081]
[1673073156201,0.05536182,16939.0,16938.0,5.56341861]
[1673073156449,0.05536182,16939.0,16938.0,5.52683338]
[1673073156708,0.05536182,16939.0,16938.0,4.92057438]
[1673073157197,0.05536182,16939.0,16938.0,4.95621372]
[1673073157707,0.05536182,16939.0,16938.0,5.56247272]
[1673073158204,0.05536182,16939.0,16938.0,6.01422492]
[1673073158439,0.05536182,16939.0,16938.0,5.56247272]
[1673073160062,0.05536182,16939.0,16938.0,5.56352163]
[1673073160287,0.05536182,16939.0,16938.0,5.26834163]
[1673073160631,0.05536182,16939.0,16938.0,5.56353163]
[1673073161895,0.05536182,16939.0,16938.0,4.86353163]
[1673073162402,0.05536182,16939.0,16938.0,5.31528383]
[1673073162905,0.05536182,16939.0,16938.0,5.56353163]
[1673073163200,0.05536182,16939.0,16938.0,6.01528383]
[1673073164388,0.05536182,16939.0,16938.0,6.01525383]
[1673073164635,0.05536182,16939.0,16938.0,6.61525383]
[1673073165665,0.05536182,16939.0,16938.0,5.72009383]
[1673073165922,0.05536182,16939.0,16938.0,6.01526383]
[1673073166902,0.05536182,16939.0,16938.0,6.01525383]
[1673073167123,0.05536182,16939.0,16938.0,5.72009383]
[1673073167342,0.05536182,16939.0,16938.0,6.01526383]
[1673073168532,0.05536182,16939.0,16938.0,5.26729272]
[1673073168745,0.05536182,16939.0,16938.0,4.56729272]
[1673073169266,0.05536182,16939.0,16938.0,5.01904492]
[1673073169755,0.05536182,16939.0,16938.0,5.71904492]
[1673073169981,0.05527411,16939.0,16938.0,5.71904492]
[1673073171269,0.05527411,16939.0,16938.0,6.01422492]
[1673073172061,0.05527411,16939.0,16938.0,6.01527383]
[1673073173585,0.05527411,16939.0,16938.0,5.57230233]
[1673073173835,0.05527411,16939.0,16938.0,5.72005877]
[1673073174084,0.05527411,16939.0,16938.0,5.97959943]
[1673073175999,0.05527411,16939.0,16938.0,5.27959943]
[1673073176968,0.05527411,16939.0,16938.0,5.97959943]
[1673073177718,0.05527411,16939.0,16938.0,5.53666299]
[1673073178222,0.05527411,16939.0,16938.0,5.88115331]
[1673073178473,0.05527411,16939.0,16938.0,5.88115465]
[1673073178721,0.05527411,16939.0,16938.0,5.52680218]
[1673073179703,0.05527411,16939.0,16938.0,5.97855438]
[1673073180445,0.05527411,16939.0,16938.0,5.52680218]
[1673073181911,0.05527411,16939.0,16938.0,5.52785109]
[1673073183678,0.05527411,16939.0,16938.0,5.97960329]
[1673073183877,0.05527411,16939.0,16938.0,5.52785109]
[1673073184346,0.05527411,16939.0,16938.0,5.27960329]
[1673073184583,0.05527411,16939.0,16938.0,4.82785109]
[1673073184792,0.05527411,16939.0,16938.0,5.27960329]
[1673073185279,0.05527411,16939.0,16938.0,5.97959329]
[1673073186312,0.05527411,16939.0,16938.0,5.97960329]
[1673073186533,0.05527411,16939.0,16938.0,6.15270329]
[1673073187660,0.05527411,16939.0,16938.0,5.70095109]
[1673073187924,0.05527411,16939.0,16938.0,5.73659043]
[1673073188175,0.05527411,16939.0,16938.0,6.18834263]
[1673073189175,0.05527411,16939.0,16938.0,5.73659043]
[1673073191372,0.05527411,16939.0,16938.0,5.03659043]
[1673073192363,0.05527411,16939.0,16938.0,5.73659043]
[1673073193117,0.05527411,16939.0,16938.0,5.70095109]
[1673073196365,0.05527411,16939.0,16938.0,5.52745109]
[1673073197321,0.05527411,16939.0,16938.0,5.97920329]
[1673073198300,0.05527411,16939.0,16938.0,6.01484263]
[1673073198546,0.05527411,16939.0,16938.0,4.86309043]
[1673073198782,0.05527411,16939.0,16938.0,4.25683143]
[1673073199256,0.05527411,16939.0,16938.0,4.86204152]
[1673073199494,0.05527411,16939.0,16938.0,5.56204152]
[1673073200700,0.05527411,16939.0,16938.0,5.38894152]
[1673073202779,0.05527411,16939.0,16938.0,5.38899221]
[1673073203037,0.05527411,16939.0,16938.0,5.39004112]
[1673073203279,0.05527411,16939.0,16938.0,5.35440178]
[1673073205779,0.05527411,16939.0,16938.0,5.10615398]
[1673073206039,0.05527411,16939.0,16938.0,4.66316299]
[1673073206520,0.05527411,16939.0,16938.0,5.80615564]
[1673073207019,0.05527411,16939.0,16938.0,5.35440344]
[1673073207757,0.05527411,16939.0,16938.0,5.80615564]
[1673073208014,0.05527411,16939.0,16938.0,4.91141079]
[1673073208262,0.05527411,16939.0,16938.0,5.35440322]
[1673073208506,0.05527411,16939.0,16938.0,5.35440323]
[1673073208747,0.05527411,16939.0,16938.0,4.91141079]
[1673073209025,0.05527411,16939.0,16938.0,5.35440283]
[1673073209275,0.05527411,16939.0,16938.0,5.36316299]
[1673073209523,0.05527411,16939.0,16938.0,4.91141079]
[1673073210005,0.05527411,16939.0,16938.0,4.91140079]
[1673073212458,0.05527411,16939.0,16938.0,4.21140079]
[1673073213484,0.05527411,16939.0,16938.0,5.3543829]
[1673073213991,0.05527411,16939.0,16938.0,4.91140079]
[1673073216257,0.05518667,16939.0,16938.0,5.36315299]
[1673073217725,0.05518667,16939.0,16938.0,4.91140079]
[1673073217975,0.05518667,16939.0,16938.0,4.91035188]
[1673073218946,0.05518667,16939.0,16938.0,5.36210408]
[1673073219202,6.04950482,16940.0,16938.0,5.36210408]
[1673073219450,6.04950482,16940.0,16939.0,3.00854937]
[1673073219695,6.04950482,16940.0,16939.0,4.77960837]
[1673073219966,6.0,16940.0,16939.0,4.77960837]
[1673073220467,6.013,16940.0,16939.0,5.47960837]
[1673073220989,6.0,16940.0,16939.0,5.47960837]
[1673073221235,6.013,16940.0,16939.0,5.52260837]
[1673073221979,6.013,16940.0,16939.0,6.4505939]
[1673073227898,6.013,16940.0,16939.0,5.7505939]
[1673073228926,6.013,16940.0,16939.0,6.4505939]
[1673073229159,6.013,16940.0,16939.0,6.1554239]
[1673073229409,6.013,16940.0,16939.0,6.4505939]
[1673073229663,6.013,16940.0,16939.0,6.1554239]
[1673073229907,6.013,16940.0,16939.0,6.4505939]
[1673073235061,6.013,16940.0,16939.0,5.7505939]
[1673073236074,6.013,16940.0,16939.0,6.4505939]
[1673073241521,6.01293151,16940.0,16939.0,6.4505939]
[1673073242039,6.01293151,16940.0,16939.0,5.7505939]
[1673073242985,6.01293151,16940.0,16939.0,6.4505939]
[1673073249029,6.01293151,16940.0,16939.0,5.4554239]
[1673073249273,6.01293151,16940.0,16939.0,5.7505939]
[1673073250035,6.01293151,16940.0,16939.0,6.4505939]
[1673073250913,6.01293151,16940.0,16939.0,6.1554239]
[1673073251170,6.01293151,16940.0,16939.0,6.4505939]
[1673073251926,6.01293151,16940.0,16939.0,4.6795349]
[1673073252220,6.01293151,16940.0,16939.0,6.4505939]
[1673073253222,6.01293151,16940.0,16939.0,6.09623042]
[1673073254461,6.01293151,16940.0,16939.0,6.45054955]
[1673073254711,6.01293151,16940.0,16939.0,6.09623042]
[1673073256928,6.01293151,16940.0,16939.0,6.45056293]
[1673073257184,6.01293151,16940.0,16939.0,6.45057847]
[1673073257442,6.01293151,16940.0,16939.0,5.75057847]
[1673073257889,6.01293151,16940.0,16939.0,5.39623042]
[1673073258765,6.01293151,16940.0,16939.0,6.09623042]
[1673073261240,6.01293151,16940.0,16939.0,6.45059132]
[1673073261974,6.01293151,16940.0,16939.0,6.15542132]
[1673073262241,6.01293151,16940.0,16939.0,6.45059132]
[1673073264403,6.01293151,16940.0,16939.0,5.75059132]
[1673073265181,6.01293151,16940.0,16939.0,5.39623042]
[1673073265443,6.01293151,16940.0,16939.0,6.09623042]
[1673073269926,6.01293151,16940.0,16939.0,6.09622042]
[1673073271486,6.01293151,16940.0,16939.0,5.39622042]
[1673073272214,6.01293151,16940.0,16939.0,6.09622042]
[1673073272493,6.01293151,16940.0,16939.0,6.4506136]
[1673073273233,6.01293151,16940.0,16939.0,6.48625294]
[1673073275160,6.01293151,16940.0,16939.0,6.48626294]
[1673073278421,6.01293151,16940.0,16939.0,5.7506236]
[1673073278956,6.01293151,16940.0,16939.0,5.39623042]
[1673073279489,6.01293151,16940.0,16939.0,6.09623042]
[1673073280268,6.01293151,16940.0,16939.0,6.09622042]
[1673073282426,6.01293151,16940.0,16939.0,6.09623042]
[1673073283169,6.01293151,16940.0,16939.0,6.45059731]
[1673073283659,6.01293151,16940.0,16939.0,6.09623042]
[1673073284170,6.01293151,16940.0,16939.0,5.48997142]
[1673073285414,6.01293151,16940.0,16939.0,4.78997142]
[1673073286442,6.01293151,16940.0,16939.0,5.48997142]
[1673073288885,6.01293151,16940.0,16939.0,6.09623042]
[1673073289625,6.01293151,16940.0,16939.0,5.48997142]
[1673073292365,6.01293151,16940.0,16939.0,4.78997142]
[1673073293404,6.01293151,16940.0,16939.0,5.48997142]
[1673073293950,6.01293151,16940.0,16939.0,5.48996142]
[1673073294268,6.01293151,16940.0,16939.0,6.09622042]
[1673073294992,6.01293151,16940.0,16939.0,5.48996142]
[1673073295987,6.01293151,16940.0,16939.0,6.71955472]
[1673073296545,6.01293151,16940.0,16939.0,6.26972042]
[1673073296794,6.01293151,16940.0,16939.0,6.71955472]
[1673073297029,6.01293151,16940.0,16939.0,6.26972042]
[1673073297277,6.01293151,16940.0,16939.0,6.26971042]
[1673073299303,6.01293151,16940.0,16939.0,5.56971042]
[1673073299565,6.01293151,16940.0,16939.0,4.96345142]
[1673073300062,6.01293151,16940.0,16939.0,5.56971042]
[1673073300322,6.01293151,16940.0,16939.0,6.26971042]
[1673073300822,6.01293151,16940.0,16939.0,5.36830142]
[1673073301058,6.01293151,16940.0,16939.0,5.7226361]
[1673073301291,6.01293151,16940.0,16939.0,5.7143981]
[1673073301793,6.01293151,16940.0,16939.0,6.3206571]
[1673073302045,6.01293151,16940.0,16939.0,5.96632242]
[1673073302488,6.01293151,16940.0,16939.0,6.32065686]
[1673073302751,6.00779451,16940.0,16939.0,5.96632242]
[1673073303001,6.00779451,16940.0,16939.0,5.36006342]
[1673073303476,6.00779451,16940.0,16939.0,5.96632242]
[1673073304504,6.00779451,16940.0,16939.0,5.96732144]
[1673073305379,6.00779451,16940.0,16939.0,5.36106244]
[1673073305881,6.00779451,16940.0,16939.0,5.65623244]
[1673073306401,6.00779451,16940.0,16939.0,5.48273244]
[1673073308916,5.07744129,16940.0,16939.0,5.48273244]
[1673073309148,5.07744129,16940.0,16939.0,5.8370664]
[1673073309366,5.07744129,16940.0,16939.0,5.5418964]
[1673073309808,5.07744129,16940.0,16939.0,5.80665706]
[1673073310036,5.07744129,16940.0,16939.0,5.51173484]
[1673073310289,5.07744129,16940.0,16939.0,5.36370271]
[1673073315048,5.07744129,16940.0,16939.0,5.65886271]
[1673073315304,5.07744129,16940.0,16939.0,5.83605738]
[1673073315556,5.07744129,16940.0,16939.0,6.44231638]
[1673073316574,5.07744129,16940.0,16939.0,7.14230384]
[1673073318310,5.07744129,16940.0,16939.0,7.14229384]
[1673073318588,5.07744129,16940.0,16939.0,6.68797242]
[1673073320252,5.07744129,16940.0,16939.0,6.08797242]
[1673073320516,5.07744129,16940.0,16939.0,6.08171342]
[1673073321007,5.07744129,16940.0,16939.0,6.08172342]
[1673073321493,5.07744129,16940.0,16939.0,5.98798242]
[1673073321745,5.07744129,16940.0,16939.0,6.34222565]
[1673073322506,5.07744129,16940.0,16939.0,7.04222565]
[1673073323012,5.07744129,16940.0,16939.0,6.68798242]
[1673073323663,5.07744129,16940.0,16939.0,7.04222008]
[1673073324733,5.07744129,16940.0,16939.0,6.68798242]
[1673073328418,5.07744129,16940.0,16939.0,5.98798242]
[1673073329445,5.07744129,16940.0,16939.0,6.68798242]
[1673073331110,5.07744129,16940.0,16939.0,7.04220124]
[1673073331630,5.07744129,16940.0,16939.0,6.44220124]
[1673073331879,5.07744129,16940.0,16939.0,5.83594224]
[1673073332657,5.07744129,16940.0,16939.0,6.44220124]
[1673073332917,5.07744129,16940.0,16939.0,6.08798242]
[1673073334415,5.07744129,16940.0,16939.0,6.68798242]
[1673073335360,5.07744129,16940.0,16939.0,5.98798242]
[1673073336330,5.07744129,16940.0,16939.0,7.14230384]
[1673073336846,5.07744129,16940.0,16939.0,6.68798242]
[1673073337741,5.07744129,16940.0,16939.0,6.39282242]
[1673073338091,5.07744129,16940.0,16939.0,6.68797242]
[1673073341037,5.07744129,16940.0,16939.0,6.68897144]
[1673073342517,5.07744129,16940.0,16939.0,5.98897144]
[1673073343203,5.07744129,16940.0,16939.0,5.38271244]
[1673073343457,5.07744129,16940.0,16939.0,6.68897144]
[1673073343707,5.07744129,16940.0,16939.0,7.14329286]
[1673073344464,5.07744129,16940.0,16939.0,6.68897144]
[1673073344988,5.07744129,16940.0,16939.0,7.14329286]
[1673073345230,5.07744129,16940.0,16939.0,6.68897144]
[1673073346651,5.07744129,16940.0,16939.0,7.14329286]
[1673073347188,5.07744129,16940.0,16939.0,6.68897144]
[1673073347697,5.07744129,16940.0,16939.0,7.04316291]
[1673073348218,5.07744129,16940.0,16939.0,6.68897144]
[1673073348446,5.07744129,16940.0,16939.0,7.04316127]
[1673073349735,5.07744129,16940.0,16939.0,6.34316127]
[1673073350241,5.07744129,16940.0,16939.0,5.98897144]
[1673073350492,5.07744129,16940.0,16939.0,6.34320888]
[1673073351521,5.07744129,16940.0,16939.0,7.04320888]
[1673073351757,5.07744129,16940.0,16939.0,6.68897144]
[1673073356900,5.07744129,16940.0,16939.0,6.39382144]
[1673073357151,5.07744129,16940.0,16939.0,6.68898144]
[1673073357375,5.07744129,16940.0,16939.0,5.98898144]
[1673073357628,5.07744129,16940.0,16939.0,6.08272244]
[1673073357877,5.07744129,16940.0,16939.0,6.68898144]
[1673073363523,5.07744129,16940.0,16939.0,5.38898144]
[1673073363778,5.07744129,16940.0,16939.0,4.78272244]
[1673073364246,5.07744129,16940.0,16939.0,5.38898144]
[1673073364500,5.07744129,16940.0,16939.0,6.08898144]
[1673073365878,5.07744129,16940.0,16939.0,6.68898144]
[1673073366651,5.07744129,16940.0,16939.0,6.08898144]
[1673073367131,5.07744129,16940.0,16939.0,5.48272244]
[1673073368127,5.07744129,16940.0,16939.0,6.08898144]
[1673073368436,5.07744129,16940.0,16939.0,5.48272244]
[1673073368689,5.10744313,16940.0,16939.0,5.48272244]
[1673073369472,5.10744313,16940.0,16939.0,5.83707012]
[1673073369727,5.10744313,16940.0,16939.0,5.48272244]
[1673073370229,5.10744313,16940.0,16939.0,5.83706118]
[1673073370466,5.10744313,16940.0,16939.0,5.74332018]
[1673073371183,5.10744313,16940.0,16939.0,5.13706118]
[1673073371406,5.10744313,16940.0,16939.0,5.83706118]
[1673073371627,5.10744313,16940.0,16939.0,6.44332018]
[1673073371888,5.10744313,16940.0,16939.0,5.83706118]
[1673073372371,5.10744313,16940.0,16939.0,6.10279145]
[1673073372611,5.10744313,16940.0,16939.0,6.70905045]
[1673073373072,5.10744313,16940.0,16939.0,6.44232116]
[1673073373298,5.10744313,16940.0,16939.0,6.10279161]
[1673073373529,5.10744313,16940.0,16939.0,6.10179259]
[1673073373790,5.10744313,16940.0,16939.0,5.65883824]
[1673073375511,5.10744313,16940.0,16939.0,6.26509724]
[1673073376515,5.10744313,16940.0,16939.0,6.43859724]
[1673073377458,5.10744313,16940.0,16939.0,5.73859724]
[1673073378393,5.10744313,16940.0,16939.0,6.43859724]
[1673073383296,5.10744313,16940.0,16939.0,6.14343724]
[1673073383520,5.10744313,16940.0,16939.0,6.43859724]
[1673073384342,5.10744313,16940.0,16939.0,5.73859724]
[1673073385381,5.10744313,16940.0,16939.0,6.43859724]
[1673073386418,5.10744313,16940.0,16939.0,6.26509724]
[1673073386880,5.10744313,16940.0,16939.0,6.26508724]
[1673073391098,5.10744313,16940.0,16939.0,5.96993724]
[1673073391313,5.10744313,16940.0,16939.0,5.56508724]
[1673073392322,5.10744313,16940.0,16939.0,6.00804159]
[1673073392572,5.10744313,16940.0,16939.0,6.26508724]
[1673073396943,5.10744313,16940.0,16939.0,5.65882824]
[1673073397962,5.10744313,16940.0,16939.0,6.26508724]
[1673073398423,5.10744313,16940.0,16939.0,5.56508724]
[1673073398710,5.10744313,16940.0,16939.0,4.95882824]
[1673073399185,5.10744313,16940.0,16939.0,5.56509724]
[1673073399435,5.10744313,16940.0,16939.0,6.26509724]
[1673073400356,5.10744313,16940.0,16939.0,5.65883824]
[1673073400910,5.10744313,16940.0,16939.0,6.26509724]
[1673073401124,5.10744313,16940.0,16939.0,5.65883824]
[1673073402864,5.10744313,16940.0,16939.0,6.26509724]
[1673073405341,5.10744313,16940.0,16939.0,5.56509724]
[1673073406374,5.10744313,16940.0,16939.0,6.26509724]
[1673073406852,5.10744313,16940.0,16939.0,5.65883824]
[1673073407785,5.10744313,16940.0,16939.0,6.26509724]
[1673073408031,5.10744313,16940.0,16939.0,6.70805159]
[1673073409291,5.10744313,16940.0,16939.0,6.74369093]
[1673073409537,5.10744313,16940.0,16939.0,6.7437164]
[1673073409809,5.10744313,16940.0,16939.0,7.0779605]
[1673073411311,5.10744313,16940.0,16939.0,7.34373941]
[1673073411563,5.10744313,16940.0,16939.0,7.0779605]
[1673073411780,5.10744313,16940.0,16939.0,7.34373923]
[1673073412036,5.10744313,16940.0,16939.0,6.90078488]
[1673073412402,5.10744313,16940.0,16939.0,6.20078488]
[1673073413253,5.10744313,16940.0,16939.0,6.64373923]
[1673073413484,5.10744313,16940.0,16939.0,7.34373923]
[1673073413992,5.10744313,16940.0,16939.0,7.0779605]
[1673073414251,5.10744313,16940.0,16939.0,6.7828005]
[1673073414491,5.10744313,16940.0,16939.0,7.0779605]
[1673073419564,5.10744313,16940.0,16939.0,6.34232116]
[1673073420569,5.10744313,16940.0,16939.0,7.04232116]
[1673073421337,5.10744313,16940.0,16939.0,7.04230116]
[1673073424345,5.10744313,16940.0,16939.0,7.0779405]
[1673073424573,5.10744313,16940.0,16939.0,7.35070423]
[1673073424836,5.10744313,16940.0,16939.0,6.89710176]
[1673073429044,5.10744313,16940.0,16939.0,6.89810078]
[1673073430233,5.10744313,16940.0,16939.0,6.86246144]
[1673073430498,5.10744313,16940.0,16939.0,6.89810078]
[1673073431186,5.10744313,16940.0,16939.0,7.25232371]
[1673073431654,5.10744313,16940.0,16939.0,7.25232332]
[1673073431952,5.10744313,16940.0,16939.0,6.89810078]
[1673073434140,5.10744313,16940.0,16939.0,7.25130282]
[1673073434698,5.10744313,16940.0,16939.0,6.64504382]
[1673073435129,5.10744313,16940.0,16939.0,7.25131282]
[1673073435825,5.10744313,16940.0,16939.0,6.64505382]
[1673073436808,5.10744313,16940.0,16939.0,6.34990382]
[1673073437054,5.10744313,16940.0,16939.0,6.64505382]
[1673073437309,5.10744313,16940.0,16939.0,6.91071099]
[1673073437998,5.10744313,16940.0,16939.0,7.51696999]
[1673073438242,5.10744313,16940.0,16939.0,7.25131282]
[1673073440519,5.10744313,16940.0,16939.0,6.95616282]
[1673073440731,5.10744313,16940.0,16939.0,6.64505382]
[1673073440984,5.10744313,16940.0,16939.0,5.64990382]
[1673073441202,5.10744313,16940.0,16939.0,5.94505382]
[1673073441953,5.10744313,16940.0,16939.0,7.25131282]
[1673073444631,5.10744313,16940.0,16939.0,7.21567348]
[1673073445398,5.10744313,16940.0,16939.0,7.25131282]
[1673073446407,5.10744313,16940.0,16939.0,7.07781282]
[1673073446660,5.10744313,16940.0,16939.0,6.47155382]
[1673073446902,5.10744313,16940.0,16939.0,6.73723721]
[1673073447145,5.10744313,16940.0,16939.0,6.47155382]
[1673073451845,5.10744313,16940.0,16939.0,5.77155382]
[1673073452310,5.10744313,16940.0,16939.0,6.37781282]
[1673073452804,5.10744313,16940.0,16939.0,7.07781282]
[1673073456948,5.10744313,16940.0,16939.0,6.47155382]
[1673073457699,5.10744313,16940.0,16939.0,7.07781282]
[1673073461174,5.10744313,16940.0,16939.0,6.47155382]
[1673073465937,5.10744313,16940.0,16939.0,6.43591448]
[1673073466526,5.10744313,16940.0,16939.0,6.47155382]
[1673073466719,5.07744129,16940.0,16939.0,7.07781282]
[1673073466971,5.07744129,16940.0,16939.0,7.22584495]
[1673073467199,5.07744129,16940.0,16939.0,7.07781282]
[1673073467703,5.10895609,16940.0,16939.0,7.07781282]
[1673073468785,5.10895609,16940.0,16939.0,6.72361176]
[1673073469366,5.10895609,16940.0,16939.0,6.37792729]
[1673073469601,5.10895609,16940.0,16939.0,5.77166829]
[1673073470562,5.10895609,16940.0,16939.0,6.47166829]
[1673073470811,5.10895609,16940.0,16939.0,7.07792729]
[1673073471791,5.10895609,16940.0,16939.0,6.47166829]
[1673073473295,5.10895609,16940.0,16939.0,6.11735276]
[1673073473541,5.10895609,16940.0,16939.0,6.72361176]
[1673073476510,5.10895609,16940.0,16939.0,6.37795875]
[1673073476803,5.10895609,16940.0,16939.0,5.77169975]
[1673073477050,5.10895609,16940.0,16939.0,5.41735276]
[1673073477297,5.10895609,16940.0,16939.0,6.02361176]
[1673073477539,5.10895609,16940.0,16939.0,6.72361176]
[1673073483633,5.10895609,16940.0,16939.0,6.02361176]
[1673073483879,5.10895609,16940.0,16939.0,5.41735276]
[1673073484425,5.10895609,16940.0,16939.0,6.72361176]
[1673073484680,5.10895609,16940.0,16939.0,7.07794996]
[1673073487107,5.10895609,16940.0,16939.0,6.47169096]
[1673073487587,5.10895609,16940.0,16939.0,7.07794996]
[1673073488554,5.10895609,16940.0,16939.0,6.78279996]
[1673073488769,5.10895609,16940.0,16939.0,6.17654096]
[1673073489691,5.10895609,16940.0,16939.0,6.44230849]
[1673073490280,5.10895609,16940.0,16939.0,6.17654096]
[1673073490536,5.10895609,16940.0,16939.0,5.47654096]
[1673073491015,5.10895609,16940.0,16939.0,5.7423083]
[1673073491264,5.10895609,16940.0,16939.0,5.29935395]
[1673073491489,5.10895609,16940.0,16939.0,5.99935395]
[1673073491952,5.10895609,16940.0,16939.0,6.4423083]
[1673073492278,5.10895609,16940.0,16939.0,6.78279996]
[1673073492801,5.10895609,16940.0,16939.0,6.17654096]
[1673073493058,5.10895609,16940.0,16939.0,6.78279996]
[1673073493316,5.10895609,16940.0,16939.0,5.84227738]
[1673073493527,5.10895609,16940.0,16939.0,5.39932303]
[1673073495517,5.10895609,16940.0,16939.0,6.00558203]
[1673073497205,5.10895609,16940.0,16939.0,6.18279996]
[1673073497458,5.10895609,16940.0,16939.0,5.48279996]
[1673073498513,5.10895609,16940.0,16939.0,6.14716062]
[1673073499845,5.10895609,16940.0,16939.0,6.44232062]
[1673073502136,5.10895609,16940.0,16939.0,6.08798242]
[1673073502428,5.10895609,16940.0,16939.0,6.08797242]
[1673073504610,5.10895609,16940.0,16939.0,5.38797242]
[1673073505114,5.10895609,16940.0,16939.0,6.08797242]
[1673073506304,5.10895609,16940.0,16939.0,5.79282242]
[1673073506554,5.10895609,16940.0,16939.0,6.08797242]
[1673073512202,5.10895609,16940.0,16939.0,5.48171342]
[1673073512453,5.10895609,16940.0,16939.0,5.83594994]
[1673073513019,5.10895609,16940.0,16939.0,5.74220894]